fUSD/lending_fUSD_20250911
["ID","MTS","AMOUNT","RATE_DAILY","PERIOD"]
[384958840,1757633552963,-1198.42,0.00029589,7]
[384958841,1757633552972,-565.03,0.00029589,7]
[384958842,1757633552981,-659.58,0.00029589,7]
[384958843,1757633552991,-1075.82,0.00029589,7]
[384958844,1757633553000,-259.2832645,0.00029589,7]
[384958845,1757633554362,-761.13017252,0.00027106,2]
[384958846,1757633554564,-16.68366302,0.00027106,2]
[384958847,1757633554576,-186.84247379,0.00027106,2]
[384958848,1757633554585,-150.57092621,0.00027397,7]
[384958849,1757633554598,-435.11963579,0.00027397,7]
[384958850,1757633554607,-345.11987028,0.00027397,7]
[384958852,1757633559290,276.42153808,0.00029681,120]
[384958855,1757633574710,300.0,0.00028168,120]
[384958889,1757633703183,236.46200147,0.00019442,2]
[384958908,1757633782256,176.47,0.00026187,120]
[384958912,1757633807839,1391.07,0.00030136,120]
[384958918,1757633856048,-213.83086059,0.00020831,2]
[384958919,1757633859915,-20.75913941,0.00020831,2]
[384958924,1757633887074,298.75,0.00013026,2]
[384958925,1757633887270,298.75,0.00013712,2]
[384958926,1757633887496,298.75,0.00014398,2]
[384958927,1757633887718,298.75,0.00015083,2]
[384958928,1757633887949,298.75,0.00015769,2]
[384958929,1757633888556,298.75,0.00016454,2]
[384958930,1757633888607,298.75,0.0001714,2]
[384958931,1757633888668,298.75,0.00017825,2]
[384958932,1757633888822,298.75,0.00018511,2]
[384958933,1757633889018,298.75,0.00019197,2]
[384958934,1757633889229,194.96676631,0.00019882,2]
[384958935,1757633889256,103.78323369,0.00019882,2]
[384958936,1757633891175,-298.75,0.00020568,2]
[384958937,1757633891200,-133.60551718,0.00021253,2]
[384958939,1757633896521,-165.14448282,0.00021253,2]
[384958940,1757633896546,-298.75,0.00021939,2]
[384958941,1757633896572,-24.58733641,0.00022625,2]
[384958942,1757633898292,-274.16266359,0.00022625,2]
[384958943,1757633898318,-1.76897574,0.0002331,2]
[384958944,1757633902262,-296.98102426,0.0002331,2]
[384958945,1757633902287,-121.03676935,0.00023996,2]
[384958946,1757633905157,-177.71323065,0.00023996,2]
[384958947,1757633908440,-264.10473184,0.00024162,2]
[384958951,1757633920348,-60.28140706,0.00024162,2]
[384958960,1757633971390,-151.0,0.00024332,2]
[384958962,1757633983840,169.49,0.00016438,2]
[384958964,1757633984860,-169.49,0.00022783,2]
[384958970,1757634026691,-150.28,0.00024072,2]
[384958981,1757634128785,-161.76596948,0.00020069,2]
[384958982,1757634130380,-3.23403052,0.00020069,2]
[384958983,1757634130404,-151.0,0.00023848,2]
[384958984,1757634130429,-150.29080891,0.000241,2]
[384959314,1757634308235,-177.62304582,0.000244,5]
[384959422,1757634347585,-151.0,0.00024496,2]
[384959423,1757634347609,-298.75,0.00024681,2]
[384959424,1757634347632,-150.0,0.00024879,2]
[384959425,1757634347652,-150.0,0.00024879,2]
[384959426,1757634347678,-150.0,0.00024879,2]
[384959427,1757634347698,-150.0,0.00024879,2]
[384959428,1757634347720,-150.0,0.00024879,2]
[384959429,1757634347743,-16.26943866,0.00024879,2]
[384959455,1757634397078,-133.73056134,0.00024879,2]
[384959456,1757634397102,-17.67762366,0.000249,2]
[384959504,1757634436333,-1391.00273507,0.000249,2]
[384959506,1757634441091,-401.73594143,0.000249,2]
[384959507,1757634441112,-300.0,0.00025237,2]
[384959508,1757634441134,-237.0,0.00025237,2]
[384959509,1757634441155,-500.0,0.00025238,2]
[384959510,1757634441176,-231.69798784,0.00025238,2]
[384959511,1757634441196,-518.88425947,0.00025238,2]
[384959512,1757634441221,-500.0,0.00025238,2]
[384959514,1757634441248,-500.0,0.00025238,2]
[384959515,1757634441270,-500.0,0.00025238,2]
[384959516,1757634441296,-451.85090715,0.00025238,2]
[384959517,1757634442101,-48.14909285,0.00025238,2]
[384959518,1757634442124,-311.88139115,0.00025238,2]
[384959579,1757634517009,-3102.87,0.00024596,2]
[384959586,1757634525310,-2482.28,0.00024596,2]
[384959599,1757634542161,-152.0,0.00024396,2]
[384959603,1757634544357,-218.01483678,0.00024396,2]
[384959605,1757634548071,-129.98516322,0.00024396,2]
[384959606,1757634548092,-576.494286,0.00024473,2]
[384959607,1757634548113,-4776.7239018,0.00024596,2]
[384959608,1757634548134,-1750.06909029,0.000249,2]
[384959609,1757634548155,-300.0,0.00025236,2]
[384959610,1757634548179,-343.84015869,0.00025237,2]
[384959618,1757634556870,-156.15984131,0.00025237,2]
[384959619,1757634556893,-500.0,0.00025237,2]
[384959620,1757634556915,-500.0,0.00025237,2]
[384959621,1757634556936,-500.0,0.00025237,2]
[384959622,1757634556958,-500.0,0.00025237,2]
[384959623,1757634556979,-500.0,0.00025237,2]
[384959624,1757634557001,-500.0,0.00025237,2]
[384959625,1757634557023,-500.0,0.00025237,2]
[384959626,1757634557044,-218.49597621,0.00025237,2]
[384959627,1757634557066,-500.0,0.00025237,2]
[384959628,1757634557088,-500.0,0.00025237,2]
[384959629,1757634557110,-500.0,0.00025237,2]
[384959630,1757634557132,-500.0,0.00025237,2]
[384959631,1757634557154,-500.0,0.00025237,2]
[384959632,1757634557176,-500.0,0.00025237,2]
[384959633,1757634557199,-500.0,0.00025237,2]
[384959634,1757634557222,-500.0,0.00025237,2]
[384959635,1757634557245,-500.0,0.00025237,2]
[384959636,1757634557269,-500.0,0.00025237,2]
[384959637,1757634557498,-500.0,0.00025237,2]
[384959638,1757634557526,-500.0,0.00025237,2]
[384959639,1757634557550,-500.0,0.00025237,2]
[384959640,1757634557574,-500.0,0.00025237,2]
[384959641,1757634557600,-500.0,0.00025237,2]
[384959642,1757634557626,-500.0,0.00025237,2]
[384959643,1757634557649,-500.0,0.00025237,2]
[384959644,1757634557671,-621.84959762,0.00025237,2]
[384959645,1757634557692,-26076.59241122,0.00025239,2]
[384959646,1757634557715,-298.75,0.00025367,2]
[384959647,1757634557735,-345.5,0.00025402,2]
[384959648,1757634557756,-150.0,0.00025407,7]
[384959649,1757634557785,-170.31,0.00025426,2]
[384959650,1757634557805,-18185.13099364,0.00025586,2]
[384959658,1757634570006,1500.0,0.00025967,120]
[384959700,1757634632130,-468.39,0.00025486,2]
[384959701,1757634632167,-121.46550472,0.00025486,2]
[384959702,1757634632178,-681.23058941,0.00025585,2]
[384959712,1757634637891,-518.76941059,0.00025585,2]
[384959713,1757634637901,-761.23058941,0.00025586,2]
[384959871,1757634639598,-342.160326,0.00025585,2]
[384959874,1757634639608,-500.0,0.00025585,2]
[384959876,1757634639618,-274.769074,0.00025585,2]
[384959925,1757634639890,-5.67075285,0.00025585,2]
[384959929,1757634639902,-2882.65,0.00025585,2]
[384959952,1757634640010,-710.75322552,0.00025585,2]
[384959955,1757634640020,-225.230926,0.00025585,2]
[384959958,1757634640030,-346.87217751,0.00025585,2]
[384959961,1757634640040,-2207.45841695,0.00025586,2]
[384959964,1757634640050,-162063.99,0.00025586,2]
[384959967,1757634640059,-999.99,0.00025586,2]
[384959969,1757634640070,-500.0,0.00025587,2]
[384959971,1757634640079,-151.0,0.00025587,2]
[384959973,1757634640088,-151.0,0.00025587,2]
[384959975,1757634640098,-151.0,0.00025587,2]
[384959977,1757634640107,-151.0,0.00025587,2]
[384959979,1757634640118,-151.0,0.00025587,2]
[384959982,1757634640131,-450.63115387,0.00025587,2]
[384959984,1757634640141,-200.0,0.00025587,2]
[384959986,1757634640151,-200.0,0.00025587,2]
[384959988,1757634640160,-9999.99,0.00025587,2]
[384959990,1757634640169,-160.56,0.00025664,2]
[384959992,1757634640179,-589.85550466,0.00025839,2]
[384959994,1757634640188,-322.6107,0.00025962,2]
[384959996,1757634640198,-721.12765535,0.00025962,2]
[384959998,1757634640208,-151.0,0.00025962,2]
[384960000,1757634640217,-1000.0,0.00025962,2]
[384960003,1757634640227,-1000.0,0.00025962,2]
[384960005,1757634640236,-1000.0,0.00025962,2]
[384960007,1757634640246,-1000.0,0.00025962,2]
[384960009,1757634640256,-1000.0,0.00025962,2]
[384960011,1757634640265,-500.0,0.00025962,2]
[384960013,1757634640275,-257.91778498,0.00025962,2]
[384960015,1757634640288,-216.43527215,0.00025962,2]
[384960017,1757634640297,-1000.0,0.00025962,2]
[384960019,1757634640307,-1000.0,0.00025962,2]
[384960021,1757634640316,-1134.24070469,0.00025962,2]
[384960023,1757634640327,-500.0,0.00025962,2]
[384960025,1757634640336,-500.0,0.00025962,2]
[384960027,1757634640345,-388.08136166,0.00025962,2]
[384960029,1757634640355,-151.0,0.00025962,2]
[384960031,1757634640365,-1000.0,0.00025962,2]
[384960033,1757634640375,-1000.0,0.00025962,2]
[384960035,1757634640384,-327.29951549,0.00025962,2]
[384960037,1757634640394,-405.3,0.00025967,2]
[384960039,1757634640404,-298.75,0.00026053,2]
[384960041,1757634640414,-3941.05,0.00026053,2]
[384960042,1757634640423,-250.0,0.00026182,2]
[384960043,1757634640432,-158.34,0.00026187,2]
[384960044,1757634640442,-589.85550466,0.00026193,2]
[384960045,1757634640452,-200.0,0.00026236,2]
[384960046,1757634640462,-470.59431242,0.00026276,2]
[384960047,1757634640472,-2025.41,0.00026334,2]
[384960048,1757634640481,-151.0,0.0002651,2]
[384960049,1757634640491,-589.85550466,0.00026546,2]
[384960050,1757634640501,-515.37529716,0.00026568,2]
[384960051,1757634640510,-2840.52826208,0.0002658,2]
[384960053,1757634640520,-589.85550466,0.000269,2]
[384960055,1757634640529,-1000.0,0.000269,2]
[384960057,1757634640539,-157.65783196,0.000269,2]
[384960060,1757634640549,-186.0,0.00027,7]
[384960061,1757634640559,-185.0,0.00027,7]
[384960063,1757634640568,-5767.91747905,0.00027,3]
[384960066,1757634640578,-166.6,0.00027155,2]
[384960068,1757634640588,-1966.96233898,0.00027177,2]
[384960069,1757634640597,-50660.3351,0.00027187,2]
[384960071,1757634640607,-589.85550466,0.00027253,2]
[384960074,1757634640617,-6970.5599,0.00027297,2]
[384960076,1757634640626,-5000.0,0.00027297,2]
[384960078,1757634640636,-405.43634632,0.00027297,2]
[384960080,1757634640646,-152.58558665,0.00027297,2]
[384960081,1757634640656,-256.58148336,0.000273,2]
[384960084,1757634640665,-168.0,0.00027318,2]
[384960086,1757634640675,-334.5472959,0.00027331,2]
[384960088,1757634640684,-267.46074303,0.00027331,2]
[384960090,1757634640694,-1661.3532075,0.0002736,2]
[384960092,1757634640703,-197.30234601,0.00027373,2]
[384960093,1757634640712,-500.0,0.00027373,2]
[384960095,1757634640721,-500.0,0.00027373,2]
[384960097,1757634640731,-502.14679023,0.00027373,2]
[384960099,1757634640740,-500.57165667,0.00027373,2]
[384960102,1757634640750,-500.0,0.00027373,2]
[384960104,1757634640759,-505.0621151,0.00027373,2]
[384960107,1757634640768,-501.10135596,0.00027373,2]
[384960109,1757634640778,-503.09531867,0.00027373,2]
[384960111,1757634640788,-500.0,0.00027373,2]
[384960113,1757634640797,-166.47332266,0.00027373,2]
[384960115,1757634640806,-500.0,0.00027373,2]
[384960117,1757634640815,-500.0,0.00027373,2]
[384960119,1757634640824,-500.0,0.00027373,2]
[384960121,1757634640833,-500.66945263,0.00027373,2]
[384960123,1757634640842,-500.0,0.00027373,2]
[384960125,1757634640851,-500.0,0.00027373,2]
[384960127,1757634640860,-500.0,0.00027373,2]
[384960129,1757634640869,-367.82753794,0.00027373,2]
[384960131,1757634640879,-502.78871691,0.00027373,2]
[384960133,1757634640888,-500.0,0.00027373,2]
[384960135,1757634640897,-500.0,0.00027373,2]
[384960137,1757634640907,-500.0,0.00027373,2]
[384960139,1757634640916,-183.01040613,0.00027373,2]
[384960141,1757634640925,-310.11002588,0.00027373,2]
[384960143,1757634640934,-512.28189175,0.00027373,2]
[384960145,1757634640943,-151.0,0.00027384,7]
[384960147,1757634640952,-277291.451349,0.00027387,2]
[384960149,1757634640961,-612.62392258,0.00027387,2]
[384960151,1757634640971,-153.63873487,0.00027394,7]
[384960153,1757634640980,-155.954,0.00027396,2]
[384960155,1757634640989,-600.0,0.00027396,7]
[384960157,1757634640998,-400.0,0.00027397,7]
[384960159,1757634641007,-400.0,0.00027397,2]
[384960161,1757634641016,-400.0,0.00027397,7]
[384960163,1757634641026,-400.0,0.00027397,7]
[384960165,1757634641035,-400.0,0.00027397,7]
[384960167,1757634641048,-410.56938728,0.00027397,7]
[384960169,1757634641070,-400.0,0.00027397,7]
[384960171,1757634641080,-549.9,0.00027397,7]
[384960173,1757634641089,-400.0,0.00027397,7]
[384960174,1757634641099,-400.0,0.00027397,7]
[384960177,1757634641109,-400.0,0.00027397,7]
[384960179,1757634641118,-400.0,0.00027397,7]
[384960181,1757634641127,-400.0,0.00027397,7]
[384960183,1757634641137,-400.51468033,0.00027397,7]
[384960185,1757634641147,-400.0,0.00027397,7]
[384960187,1757634641156,-408.29961764,0.00027397,7]
[384960189,1757634641165,-400.0,0.00027397,7]
[384960191,1757634641175,-400.0,0.00027397,7]
[384960193,1757634641184,-400.0,0.00027397,7]
[384960195,1757634641193,-400.0,0.00027397,7]
[384960197,1757634641202,-400.0,0.00027397,7]
[384960199,1757634641211,-400.0,0.00027397,7]
[384960201,1757634641220,-400.0,0.00027397,7]
[384960203,1757634641229,-400.0,0.00027397,7]
[384960205,1757634641238,-400.0,0.00027397,7]
[384960207,1757634641248,-400.0,0.00027397,7]
[384960209,1757634641257,-400.0,0.00027397,7]
[384960211,1757634641266,-793.43,0.00027397,7]
[384960213,1757634641275,-475.79083501,0.00027397,7]
[384960215,1757634641287,-400.0,0.00027397,7]
[384960217,1757634641296,-400.0,0.00027397,7]
[384960219,1757634641305,-400.0,0.00027397,7]
[384960221,1757634641314,-400.0,0.00027397,7]
[384960223,1757634641324,-400.0,0.00027397,7]
[384960225,1757634641334,-400.0,0.00027397,7]
[384960227,1757634641343,-400.0,0.00027397,7]
[384960229,1757634641353,-400.0,0.00027397,7]
[384960231,1757634641363,-400.0,0.00027397,7]
[384960233,1757634641373,-400.0,0.00027397,7]
[384960235,1757634641382,-489.67,0.00027397,7]
[384960237,1757634641392,-500.0,0.00027397,2]
[384960239,1757634641402,-500.0,0.00027397,2]
[384960241,1757634641411,-400.0,0.00027397,7]
[384960243,1757634641420,-403.08235238,0.00027397,2]
[384960245,1757634641429,-400.0,0.00027397,7]
[384960247,1757634641438,-400.0,0.00027397,7]
[384960249,1757634641447,-400.0,0.00027397,7]
[384960251,1757634641456,-297.96665062,0.00027397,7]
[384960253,1757634641466,-716.53,0.00027397,7]
[384960255,1757634641475,-237.86959592,0.00027397,7]
[384960257,1757634641484,-400.0,0.00027397,7]
[384960259,1757634641493,-400.0,0.00027397,7]
[384960261,1757634641502,-400.0,0.00027397,7]
[384960263,1757634641511,-400.0,0.00027397,7]
[384960291,1757634641755,-400.0,0.00027397,7]
[384960293,1757634641766,-400.0,0.00027397,7]
[384960295,1757634641775,-400.0,0.00027397,7]
[384960297,1757634641784,-400.0,0.00027397,7]
[384960299,1757634641793,-400.0,0.00027397,7]
[384960301,1757634641802,-400.0,0.00027397,7]
[384960303,1757634641811,-400.0,0.00027397,7]
[384960305,1757634641820,-400.0,0.00027397,7]
[384960307,1757634641829,-400.0,0.00027397,7]
[384960309,1757634641838,-772.14,0.00027397,7]
[384960311,1757634641847,-400.0,0.00027397,7]
[384960313,1757634641856,-400.0,0.00027397,2]
[384960315,1757634641865,-400.0,0.00027397,7]
[384960317,1757634641874,-150.0,0.00027397,2]
[384960319,1757634641886,-400.0,0.00027397,7]
[384960321,1757634641895,-400.0,0.00027397,7]
[384960323,1757634641904,-436.34,0.00027397,7]
[384960325,1757634641914,-400.0,0.00027397,7]
[384960327,1757634641923,-769.46,0.00027397,7]
[384960329,1757634641933,-400.0,0.00027397,7]
[384960331,1757634641942,-715.4,0.00027397,7]
[384960334,1757634641952,-400.0,0.00027397,7]
[384960336,1757634641961,-400.0,0.00027397,7]
[384960338,1757634641970,-400.0,0.00027397,7]
[384960340,1757634641980,-400.0,0.00027397,7]
[384960342,1757634641989,-400.0,0.00027397,7]
[384960344,1757634641998,-400.0,0.00027397,7]
[384960346,1757634642007,-400.0,0.00027397,7]
[384960348,1757634642016,-400.0,0.00027397,7]
[384960350,1757634642026,-400.0,0.00027397,7]
[384960352,1757634642035,-400.0,0.00027397,7]
[384960354,1757634642044,-400.0,0.00027397,7]
[384960356,1757634642053,-400.0,0.00027397,7]
[384960358,1757634642062,-400.0,0.00027397,7]
[384960360,1757634642072,-500.0,0.00027397,7]
[384960362,1757634642081,-400.0,0.00027397,7]
[384960364,1757634642090,-400.0,0.00027397,7]
[384960366,1757634642099,-500.0,0.00027397,2]
[384960368,1757634642109,-500.0,0.00027397,2]
[384960370,1757634642119,-500.0,0.00027397,2]
[384960372,1757634642128,-400.0,0.00027397,7]
[384960374,1757634642137,-500.0,0.00027397,2]
[384960376,1757634642147,-500.0,0.00027397,2]
[384960378,1757634642156,-400.0,0.00027397,7]
[384960380,1757634642165,-301.40011681,0.00027397,2]
[384960382,1757634642174,-400.0,0.00027397,7]
[384960384,1757634642183,-400.0,0.00027397,7]
[384960386,1757634642193,-400.0,0.00027397,7]
[384960388,1757634642202,-630.21,0.00027397,7]
[384960390,1757634642212,-400.0,0.00027397,7]
[384960392,1757634642221,-400.0,0.00027397,7]
[384960394,1757634642230,-400.0,0.00027397,7]
[384960396,1757634642239,-400.0,0.00027397,7]
[384960398,1757634642248,-400.0,0.00027397,7]
[384960400,1757634642258,-400.0,0.00027397,7]
[384960402,1757634642267,-500.0,0.00027397,7]
[384960404,1757634642276,-400.0,0.00027397,7]
[384960406,1757634642289,-623.84,0.00027397,7]
[384960408,1757634642298,-400.0,0.00027397,7]
[384960410,1757634642307,-400.0,0.00027397,7]
[384960412,1757634642317,-400.0,0.00027397,7]
[384960414,1757634642328,-400.0,0.00027397,7]
[384960416,1757634642338,-400.0,0.00027397,7]
[384960418,1757634642347,-400.0,0.00027397,7]
[384960420,1757634642360,-400.0,0.00027397,7]
[384960422,1757634642370,-400.0,0.00027397,7]
[384960426,1757634642380,-400.0,0.00027397,7]
[384960428,1757634642390,-400.0,0.00027397,7]
[384960430,1757634642401,-400.0,0.00027397,7]
[384960432,1757634642410,-400.0,0.00027397,7]
[384960434,1757634642419,-400.0,0.00027397,7]
[384960436,1757634642428,-755.03,0.00027397,7]
[384960439,1757634642438,-400.0,0.00027397,7]
[384960441,1757634642448,-400.0,0.00027397,7]
[384960443,1757634642458,-400.0,0.00027397,7]
[384960445,1757634642467,-400.0,0.00027397,7]
[384960447,1757634642477,-400.0,0.00027397,7]
[384960449,1757634642486,-400.0,0.00027397,7]
[384960451,1757634642496,-400.0,0.00027397,7]
[384960453,1757634642505,-400.0,0.00027397,7]
[384960455,1757634642515,-400.0,0.00027397,7]
[384960457,1757634642524,-772.94,0.00027397,7]
[384960459,1757634642533,-513.55,0.00027397,7]
[384960461,1757634642542,-400.0,0.00027397,7]
[384960464,1757634642552,-400.0,0.00027397,7]
[384960466,1757634642561,-400.0,0.00027397,7]
[384960468,1757634642571,-400.0,0.00027397,7]
[384960471,1757634642579,-400.0,0.00027397,7]
[384960473,1757634642588,-400.0,0.00027397,7]
[384960475,1757634642598,-400.0,0.00027397,7]
[384960477,1757634642607,-400.0,0.00027397,7]
[384960479,1757634642616,-400.0,0.00027397,7]
[384960481,1757634642626,-400.0,0.00027397,7]
[384960483,1757634642635,-500.0,0.00027397,7]
[384960485,1757634642644,-400.0,0.00027397,7]
[384960487,1757634642653,-424.88,0.00027397,7]
[384960489,1757634642662,-400.0,0.00027397,7]
[384960491,1757634642671,-400.0,0.00027397,7]
[384960493,1757634642681,-400.0,0.00027397,7]
[384960495,1757634642691,-400.0,0.00027397,7]
[384960497,1757634642700,-400.0,0.00027397,7]
[384960499,1757634642709,-400.0,0.00027397,7]
[384960501,1757634642719,-400.0,0.00027397,7]
[384960503,1757634642728,-400.0,0.00027397,7]
[384960505,1757634642737,-400.0,0.00027397,7]
[384960506,1757634642746,-400.0,0.00027397,7]
[384960507,1757634642755,-400.0,0.00027397,7]
[384960508,1757634642764,-400.0,0.00027397,7]
[384960509,1757634642773,-400.0,0.00027397,7]
[384960510,1757634642783,-400.0,0.00027397,7]
[384960511,1757634642792,-400.0,0.00027397,7]
[384960512,1757634642802,-400.0,0.00027397,7]
[384960513,1757634642811,-400.0,0.00027397,7]
[384960514,1757634642820,-500.0,0.00027397,7]
[384960516,1757634642829,-662.36,0.00027397,7]
[384960518,1757634642839,-400.0,0.00027397,7]
[384960520,1757634642848,-400.0,0.00027397,7]
[384960522,1757634642857,-400.0,0.00027397,7]
[384960524,1757634642866,-1001.33,0.00027397,7]
[384960526,1757634642875,-400.0,0.00027397,7]
[384960528,1757634642885,-400.0,0.00027397,7]
[384960531,1757634642895,-400.0,0.00027397,7]
[384960533,1757634642904,-400.0,0.00027397,7]
[384960535,1757634642913,-400.0,0.00027397,7]
[384960537,1757634642923,-213.56617302,0.00027397,7]
[384960539,1757634642933,-587.53,0.00027397,7]
[384960541,1757634642943,-400.0,0.00027397,7]
[384960543,1757634642953,-400.0,0.00027397,7]
[384960545,1757634642962,-400.0,0.00027397,7]
[384960547,1757634642971,-500.0,0.00027397,10]
[384960549,1757634642981,-500.0,0.00027397,10]
[384960551,1757634642990,-500.0,0.00027397,10]
[384960553,1757634642999,-500.0,0.00027397,10]
[384960555,1757634643008,-500.0,0.00027397,10]
[384960557,1757634643018,-500.0,0.00027397,10]
[384960559,1757634643027,-500.0,0.00027397,10]
[384960561,1757634643036,-500.0,0.00027397,10]
[384960563,1757634643045,-400.0,0.00027397,7]
[384960565,1757634643054,-400.0,0.00027397,7]
[384960567,1757634643063,-400.0,0.00027397,7]
[384960569,1757634643073,-400.0,0.00027397,7]
[384960571,1757634643083,-400.0,0.00027397,7]
[384960573,1757634643092,-210.11823977,0.00027397,7]
[384960576,1757634643101,-400.0,0.00027397,7]
[384960578,1757634643110,-400.0,0.00027397,7]
[384960581,1757634643120,-400.0,0.00027397,7]
[384960583,1757634643129,-581.28,0.00027397,7]
[384960585,1757634643139,-400.0,0.00027397,7]
[384960587,1757634643148,-524.54,0.00027397,7]
[384960589,1757634643157,-400.0,0.00027397,7]
[384960591,1757634643166,-152.087627,0.00027397,7]
[384960593,1757634643175,-400.0,0.00027397,7]
[384960595,1757634643184,-400.0,0.00027397,7]
[384960598,1757634643194,-698.17,0.00027397,7]
[384960600,1757634643203,-400.0,0.00027397,7]
[384960602,1757634643213,-400.0,0.00027397,7]
[384960604,1757634643222,-400.0,0.00027397,7]
[384960606,1757634643232,-400.0,0.00027397,7]
[384960608,1757634643240,-400.0,0.00027397,7]
[384960610,1757634643249,-551.77,0.00027397,7]
[384960612,1757634643258,-400.0,0.00027397,7]
[384960614,1757634643267,-402.87819313,0.00027397,7]
[384960616,1757634643277,-400.0,0.00027397,7]
[384960618,1757634643290,-800.69,0.00027397,7]
[384960620,1757634643300,-400.0,0.00027397,7]
[384960622,1757634643310,-404.8094694,0.00027397,7]
[384960624,1757634643319,-400.0,0.00027397,7]
[384960626,1757634643330,-400.0,0.00027397,7]
[384960628,1757634643339,-400.0,0.00027397,7]
[384960630,1757634643348,-400.0,0.00027397,7]
[384960632,1757634643359,-400.0,0.00027397,7]
[384960634,1757634643369,-400.0,0.00027397,7]
[384960636,1757634643378,-400.0,0.00027397,7]
[384960638,1757634643388,-400.0,0.00027397,7]
[384960640,1757634643397,-416.65269171,0.00027397,7]
[384960642,1757634643407,-703.13,0.00027397,7]
[384960644,1757634643417,-400.0,0.00027397,7]
[384960646,1757634643427,-400.0,0.00027397,7]
[384960648,1757634643436,-186.5168964,0.00027397,7]
[384960650,1757634643445,-400.0,0.00027397,7]
[384960652,1757634643454,-400.0,0.00027397,7]
[384960654,1757634643464,-400.0,0.00027397,7]
[384960656,1757634643473,-771.38,0.00027397,7]
[384960658,1757634643482,-400.0,0.00027397,7]
[384960660,1757634643491,-400.0,0.00027397,7]
[384960662,1757634643500,-400.0,0.00027397,7]
[384960664,1757634643509,-400.0,0.00027397,7]
[384960666,1757634643518,-400.0,0.00027397,7]
[384960668,1757634643527,-769.2,0.00027397,7]
[384960670,1757634643537,-400.0,0.00027397,7]
[384960672,1757634643546,-400.0,0.00027397,7]
[384960674,1757634643555,-400.0,0.00027397,7]
[384960676,1757634643564,-400.0,0.00027397,7]
[384960678,1757634643573,-400.0,0.00027397,7]
[384960680,1757634643583,-719.07,0.00027397,7]
[384960682,1757634643592,-400.0,0.00027397,7]
[384960684,1757634643601,-500.0,0.00027397,7]
[384960686,1757634643611,-1109.35,0.00027397,7]
[384960688,1757634643620,-400.0,0.00027397,7]
[384960690,1757634643629,-400.0,0.00027397,7]
[384960692,1757634643639,-533.27,0.00027397,7]
[384960694,1757634643648,-400.0,0.00027397,7]
[384960696,1757634643658,-400.0,0.00027397,7]
[384960698,1757634643667,-400.0,0.00027397,7]
[384960700,1757634643676,-400.0,0.00027397,2]
[384960703,1757634643686,-435.46105539,0.00027397,7]
[384960705,1757634643705,-400.0,0.00027397,7]
[384960707,1757634643715,-451.72,0.00027397,7]
[384960710,1757634643724,-400.0,0.00027397,7]
[384960712,1757634643733,-400.0,0.00027397,7]
[384960714,1757634643744,-400.0,0.00027397,7]
[384960716,1757634643754,-500.0,0.00027397,7]
[384960718,1757634643763,-500.0,0.00027397,7]
[384960720,1757634643773,-400.0,0.00027397,7]
[384960722,1757634643783,-400.0,0.00027397,7]